bitfinex-derivatives/quotes_BTCF0:USTF0_20251215
["timestamp","ask_amount","ask_price","bid_price","bid_amount"]
[1765829507880,1.23909421,85913.0,85912.0,1.51992519]
[1765829508081,1.23909421,85913.0,85912.0,1.5]
[1765829508779,0.6898321,85905.0,85904.0,0.00017451]
[1765829508977,1.2406321,85905.0,85904.0,0.00017451]
[1765829509167,1.2406321,85905.0,85904.0,1.51965495]
[1765829509363,1.2406321,85905.0,85904.0,1.50017451]
[1765829510069,1.2406321,85905.0,85904.0,1.47500805]
[1765829510264,0.67819,85884.0,85883.0,8.235e-05]
[1765829510567,0.67819,85884.0,85845.0,0.09396461]
[1765829510568,0.67819,85859.0,85845.0,0.09396461]
[1765829510768,0.82819,85859.0,85858.0,1.50232944]
[1765829510981,0.15,85859.0,85858.0,1.50232944]
[1765829511279,0.15,85859.0,85858.0,1.52140977]
[1765829511464,0.15011513,85859.0,85858.0,1.52140977]
[1765829512163,0.47552513,85859.0,85858.0,1.52140977]
[1765829512364,0.82830513,85859.0,85858.0,1.52140977]
[1765829512577,0.82930513,85859.0,85858.0,1.52140977]
[1765829512769,0.47652513,85859.0,85858.0,1.52140977]
[1765829512971,0.15111513,85859.0,85858.0,1.52140977]
[1765829513972,0.47752513,85859.0,85858.0,1.52140977]
[1765829514172,0.83030513,85859.0,85858.0,1.52140977]
[1765829515477,0.82930513,85859.0,85858.0,1.52140977]
[1765829515781,0.82830513,85859.0,85858.0,1.52140977]
[1765829516475,0.82930513,85859.0,85858.0,1.52140977]
[1765829516684,0.82930513,85859.0,85858.0,0.00232944]
[1765829516978,0.87930513,85859.0,85858.0,0.00232944]
[1765829517185,0.87830513,85859.0,85858.0,0.00232944]
[1765829517381,0.88030513,85859.0,85858.0,0.00232944]
[1765829517872,1.61350513,85859.0,85858.0,0.00232944]
[1765829518078,0.88030513,85859.0,85858.0,0.00232944]
[1765829518378,0.88030513,85859.0,85858.0,0.66410944]
[1765829519776,0.20211513,85859.0,85858.0,0.66410944]
[1765829519986,0.88030513,85859.0,85858.0,0.00232944]
[1765829522081,0.87930513,85859.0,85858.0,0.00232944]
[1765829522475,0.87830513,85859.0,85858.0,0.00232944]
[1765829522671,0.88130513,85859.0,85858.0,0.00232944]
[1765829523280,0.88030513,85859.0,85858.0,0.00232944]
[1765829523477,0.88330513,85859.0,85858.0,0.00232944]
[1765829525282,0.6690994,85851.0,85850.0,0.00017461]
[1765829525485,0.66021,85843.0,85827.0,0.7332]
[1765829525686,0.0116523,85831.0,85830.0,0.0116522]
[1765829525886,0.66021,85830.0,85829.0,0.01969687]
[1765829526076,0.6718624,85829.0,85828.0,0.00014072]
[1765829526282,0.6718624,85829.0,85828.0,1.50014072]
[1765829526283,1.5751677,85829.0,85828.0,1.50014072]
[1765829526483,1.5751677,85829.0,85824.0,0.011653]
[1765829526484,0.66021,85825.0,85824.0,0.011653]
[1765829526784,0.66021,85819.0,85814.0,0.3608]
[1765829526980,0.18,85819.0,85818.0,0.72481139]
[1765829527177,0.18,85819.0,85818.0,0.70512443]
[1765829527587,0.18,85819.0,85818.0,2.22471824]
[1765829527974,0.50817,85819.0,85818.0,2.22471824]
[1765829528891,0.181,85819.0,85818.0,2.22571824]
[1765829529592,0.18,85819.0,85818.0,2.22671824]
[1765829530386,0.18,85819.0,85818.0,2.22571824]
[1765829530694,0.18,85819.0,85818.0,2.22671824]
[1765829531482,0.50817,85819.0,85818.0,2.22671824]
[1765829532091,0.18,85819.0,85818.0,2.22471824]
[1765829532290,0.84021,85819.0,85818.0,1.52292434]
[1765829532488,0.84021,85819.0,85818.0,0.02292434]
[1765829532791,0.84021,85819.0,85818.0,0.02192434]
[1765829532989,0.84021,85819.0,85818.0,0.0007481]
[1765829533296,0.6718661,85802.0,85801.0,1.51988166]
[1765829533494,1.2126661,85802.0,85801.0,1.51988166]
[1765829534293,1.20101,85802.0,85801.0,0.71102166]
[1765829534481,1.20101,85802.0,85801.0,0.01988166]
[1765829534684,1.20101,85802.0,85800.0,0.0116962]
[1765829534883,0.66021,85801.0,85800.0,0.0116962]
[1765829535085,0.84021,85801.0,85800.0,0.0116962]
[1765829535280,0.84033259,85801.0,85800.0,0.01993772]
[1765829535591,0.84033259,85801.0,85793.0,1.5]
[1765829535592,0.66021,85794.0,85793.0,1.5]
[1765829535791,0.66021,85794.0,85780.0,0.0116591]
[1765829535792,0.66021,85793.0,85780.0,0.0116591]
[1765829535979,0.66021,85793.0,85778.0,0.21114161]
[1765829535980,0.84021,85793.0,85785.0,0.0116584]
[1765829536185,0.18,85793.0,85792.0,2.21149018]
[1765829536385,0.3608,85794.0,85793.0,0.7027973]
[1765829536586,1.20101,85794.0,85793.0,0.7027973]
[1765829536785,1.20101,85794.0,85793.0,0.0116573]
[1765829536986,1.20101,85794.0,85793.0,0.7027973]
[1765829537181,0.5408,85794.0,85793.0,0.7027973]
[1765829537393,0.18,85794.0,85793.0,0.7027973]
[1765829537886,0.00112259,85801.0,85800.0,0.9116064]
[1765829538092,0.16112259,85801.0,85800.0,0.9116064]
[1765829538288,0.82133259,85801.0,85800.0,0.69114]
[1765829538496,0.66021,85800.0,85799.0,0.0116564]
[1765829538694,0.83021,85800.0,85799.0,0.0116564]
[1765829538895,0.83021,85800.0,85794.0,0.0116571]
[1765829539099,0.65921,85795.0,85794.0,0.33905]
[1765829539300,0.82921,85795.0,85794.0,0.69114]
[1765829539684,0.82921,85795.0,85792.0,1.52010825]
[1765829539685,0.66021,85793.0,85792.0,1.52010825]
[1765829539888,0.83021,85793.0,85792.0,1.52010825]
[1765829540091,0.171,85793.0,85792.0,1.52010825]
[1765829540693,0.17,85793.0,85792.0,1.52010825]
[1765829540899,0.001,85800.0,85799.0,0.69114]
[1765829541196,0.041,85800.0,85799.0,1.7973565]
[1765829541592,0.00017472,85810.0,85809.0,0.7027951]
[1765829542195,0.00017472,85810.0,85809.0,0.69114]
[1765829542401,0.00017472,85810.0,85809.0,0.7027951]
[1765829542603,0.32845575,85810.0,85809.0,0.69114]
[1765829542792,0.66049575,85810.0,85809.0,0.69114]
[1765829543796,0.66049575,85810.0,85799.0,0.3648]
[1765829543797,0.85708,85800.0,85799.0,0.002]
[1765829543995,0.32817,85797.0,85792.0,1.52010825]
[1765829544302,0.3608,85802.0,85801.0,0.69114]
[1765829544892,1.02101,85802.0,85801.0,0.69114]
[1765829545094,0.85708,85800.0,85799.0,0.001]
[1765829545293,0.88913703,85800.0,85799.0,0.001]
[1765829545501,0.69226703,85800.0,85799.0,0.001]
[1765829545704,0.66021,85800.0,85799.0,0.69214]
[1765829546195,0.3618,85802.0,85801.0,0.33905]
[1765829546396,0.39386939,85802.0,85801.0,0.33905]
[1765829546599,1.05607939,85802.0,85801.0,0.33905]
[1765829546802,1.05607939,85802.0,85801.0,0.69114]
[1765829547206,0.66021,85801.0,85800.0,0.0116563]
[1765829547399,0.69227939,85801.0,85800.0,0.0116563]
[1765829547600,0.69227939,85801.0,85800.0,0.7027963]
[1765829547898,0.66021,85801.0,85800.0,0.7027963]
[1765829548302,0.66221,85801.0,85800.0,0.7027963]
[1765829549409,0.69396656,85801.0,85800.0,0.7027963]
[1765829549606,0.66021,85793.0,85792.0,0.02010825]
[1765829549805,0.66021,85793.0,85792.0,0.71124825]
[1765829550193,0.66021,85793.0,85792.0,2.21124825]
[1765829550396,0.3608,85795.0,85794.0,0.69773]
[1765829550603,0.69701,85795.0,85794.0,0.69773]
[1765829550809,0.003,85801.0,85800.0,0.7093864]
[1765829550996,0.3608,85802.0,85801.0,0.69773]
[1765829551199,0.39211528,85802.0,85801.0,0.69773]
[1765829552200,0.00028575,85810.0,85801.0,0.69773]
[1765829552201,0.00028575,85810.0,85809.0,0.6896951]
[1765829552511,0.03162496,85810.0,85809.0,0.6896951]
[1765829554197,0.03162496,85810.0,85809.0,1.54003231]
[1765829554598,0.03262496,85810.0,85809.0,1.54003231]
[1765829554902,0.7130354,85807.0,85806.0,0.45485394]
[1765829555108,0.74437461,85807.0,85806.0,0.09405394]
[1765829555813,0.7130362,85802.0,85801.0,0.68856]
[1765829556018,0.35911,85797.0,85796.0,0.7002168]
[1765829556209,0.39044921,85797.0,85796.0,0.7002168]
[1765829556706,0.03133921,85797.0,85796.0,0.7002168]
[1765829557112,0.03133921,85797.0,85796.0,0.7012168]
[1765829557612,0.03133921,85797.0,85796.0,0.7002168]
[1765829557800,0.03333921,85797.0,85796.0,0.7002168]
[1765829558001,0.03433921,85797.0,85796.0,0.7002168]
[1765829558214,0.03433921,85797.0,85796.0,1.0610168]
[1765829558517,0.00028575,85810.0,85809.0,0.7002151]
[1765829558715,0.00028575,85810.0,85809.0,1.7949351]
[1765829559214,0.00028575,85810.0,85809.0,1.91147231]
[1765829560413,0.00028575,85810.0,85809.0,1.7959351]
[1765829560616,0.00028575,85810.0,85809.0,1.7969351]
[1765829560914,0.00028575,85810.0,85809.0,1.7959351]
[1765829561113,0.00028575,85810.0,85809.0,1.91247231]
[1765829561411,0.00028575,85810.0,85809.0,1.91147231]
[1765829562499,0.00028575,85810.0,85809.0,1.7949351]
[1765829562910,0.00028575,85810.0,85809.0,1.7969351]
[1765829563115,0.00028575,85810.0,85809.0,1.7979351]
[1765829563605,0.00028575,85810.0,85809.0,1.7959351]
[1765829563800,0.00028575,85810.0,85809.0,1.91147231]
[1765829564111,0.3608,85826.0,85825.0,0.700213]
[1765829564715,0.71991,85826.0,85825.0,0.700213]
[1765829565107,0.72000366,85826.0,85825.0,0.700213]
[1765829566001,0.00309366,85826.0,85825.0,1.433933]
[1765829566205,0.00017483,85834.0,85833.0,0.9133319]
[1765829566400,0.00017483,85834.0,85833.0,1.6470919]
[1765829566613,0.00017483,85834.0,85833.0,2.0078919]
[1765829566812,0.00017483,85834.0,85833.0,2.12440738]
[1765829567012,0.06216444,85851.0,85850.0,0.68856]
[1765829567206,0.42127444,85854.0,85853.0,0.68856]
[1765829567407,0.42127444,85854.0,85844.0,0.57392]
[1765829567408,0.70138,85845.0,85844.0,0.71448]
[1765829567607,0.70138,85844.0,85843.0,0.69496]
[1765829567812,1.06218,85844.0,85843.0,0.69496]
[1765829568217,0.70138,85842.0,85841.0,0.0116507]
[1765829568714,1.06218,85844.0,85836.0,0.73384]
[1765829568927,0.8767015,85836.0,85835.0,0.00017472]
[1765829569214,0.86505,85836.0,85835.0,0.00017472]
[1765829569604,0.70138,85834.0,85833.0,0.0136517]
[1765829569808,0.70138,85834.0,85833.0,0.3653317]
[1765829570014,0.70138,85834.0,85833.0,0.0116517]
[1765829571019,0.70238,85834.0,85833.0,0.0116517]
[1765829572212,0.70338,85834.0,85833.0,0.0116517]
[1765829572412,0.70238,85834.0,85833.0,0.0116517]
[1765829572613,0.7150317,85834.0,85833.0,0.0116517]
[1765829572808,0.70138,85826.0,85825.0,0.01182772]
[1765829573011,1.0738328,85826.0,85825.0,0.00017472]
[1765829573718,0.70138,85816.0,85815.0,0.0116542]
[1765829573917,1.06218,85816.0,85815.0,0.0116542]
[1765829574112,0.70138,85812.0,85811.0,0.0116548]
[1765829575018,0.70138,85809.0,85808.0,0.7453753]
[1765829575216,0.70138,85809.0,85797.0,1.56164221]
[1765829575217,0.70138,85802.0,85801.0,0.0116561]
[1765829575422,0.87513,85800.0,85799.0,0.0116564]
[1765829576408,0.87413,85800.0,85799.0,0.0116564]
[1765829576915,0.70038,85800.0,85799.0,0.0116564]
[1765829577622,0.70038,85800.0,85799.0,0.7002164]
[1765829578125,0.9044,85800.0,85799.0,0.0116564]
[1765829578311,0.70038,85800.0,85799.0,0.7002164]
[1765829578712,0.70138,85800.0,85799.0,0.0116564]
[1765829578913,0.9054,85800.0,85799.0,0.0116564]
[1765829579116,0.9044,85800.0,85799.0,0.0116564]
[1765829579317,0.9054,85800.0,85799.0,0.0116564]
[1765829579517,0.9064,85800.0,85799.0,0.0116564]
[1765829580224,0.70138,85795.0,85794.0,0.68856]
[1765829580613,0.70138,85795.0,85794.0,0.7002172]
[1765829581619,0.50202674,85793.0,85792.0,0.0115082]
[1765829581812,0.69668,85783.0,85782.0,0.0116587]
[1765829582123,0.36088957,85795.0,85784.0,0.69689]
[1765829582124,0.3608,85785.0,85784.0,0.69689]
[1765829582317,0.00017482,85791.0,85790.0,0.7085477]
[1765829584325,2e-08,85791.0,85790.0,1.4421877]
[1765829585326,0.69030002,85791.0,85790.0,1.0886777]
[1765829585517,0.69030002,85791.0,85790.0,0.001]
[1765829585518,1.05110002,85791.0,85790.0,0.001]
[1765829586211,0.6893,85789.0,85788.0,0.0116579]
[1765829586417,0.6903,85783.0,85782.0,1.51988475]
[1765829586624,0.86303,85778.0,85773.0,0.08354798]
[1765829586820,0.86303,85778.0,85740.0,0.0116645]
[1765829586821,0.83379,85767.0,85750.0,4e-05]
[1765829587014,1.05118957,85767.0,85759.0,0.0116618]
[1765829587217,1.05118957,85767.0,85763.0,0.02024851]
[1765829587412,0.6903,85765.0,85760.0,0.0116617]
[1765829587616,0.6903,85765.0,85763.0,0.01969128]
[1765829588719,0.6903,85765.0,85764.0,0.054]
[1765829589029,8.957e-05,85767.0,85766.0,0.69689]
[1765829589237,8.957e-05,85767.0,85765.0,0.0116611]
[1765829589238,0.6873,85766.0,85765.0,0.0116611]
[1765829589637,8.957e-05,85767.0,85766.0,0.69689]
[1765829589818,0.6903,85766.0,85765.0,0.3550411]
[1765829590013,0.35273,85766.0,85765.0,0.7085511]
[1765829590526,8.957e-05,85767.0,85766.0,0.69689]
[1765829591730,8.957e-05,85767.0,85766.0,0.69989]
[1765829592529,8.957e-05,85767.0,85766.0,0.70289]
[1765829592725,8.957e-05,85767.0,85766.0,0.34938]
[1765829592726,0.69038957,85767.0,85766.0,0.34938]
[1765829593027,8.957e-05,85767.0,85766.0,0.70289]
[1765829593429,0.69038957,85767.0,85766.0,0.70289]
[1765829593637,8.957e-05,85767.0,85766.0,0.70289]
[1765829595223,8.957e-05,85767.0,85766.0,1.06369]
[1765829595422,0.00017482,85773.0,85772.0,0.7085502]
[1765829595622,0.6903,85789.0,85788.0,0.34338]
[1765829596124,0.6903,85789.0,85767.0,0.3608]
[1765829596125,0.6903,85779.0,85767.0,0.3608]
[1765829596320,0.35273,85773.0,85772.0,0.7085501]
[1765829596521,0.35273,85773.0,85772.0,0.7105501]
[1765829596721,0.6903,85773.0,85772.0,0.002]
[1765829596921,9.821e-05,85778.0,85777.0,0.69689]
[1765829597928,0.69039821,85778.0,85777.0,0.69689]
[1765829598122,9.821e-05,85778.0,85777.0,0.69689]
[1765829598327,9.821e-05,85778.0,85777.0,0.81347068]
[1765829598629,9.821e-05,85778.0,85777.0,0.81447068]
[1765829599131,9.821e-05,85778.0,85777.0,0.81547068]
[1765829599433,9.821e-05,85778.0,85777.0,0.69889]
[1765829600424,0.3608,85795.0,85780.0,0.69689]
[1765829600630,0.3608,85795.0,85794.0,0.7085472]
[1765829601719,0.71558148,85795.0,85794.0,0.7085472]
[1765829602125,1.05315148,85795.0,85794.0,0.7085472]
[1765829602532,0.00205148,85795.0,85794.0,0.7085472]
[1765829603834,5.148e-05,85795.0,85794.0,0.7085472]
[1765829604531,0.00105148,85795.0,85794.0,0.7085472]
[1765829604835,5.148e-05,85795.0,85794.0,0.7085472]
[1765829606536,0.00105148,85795.0,85794.0,0.7085472]
[1765829606833,0.00105148,85795.0,85794.0,1.0693472]
[1765829607030,0.00017482,85803.0,85802.0,0.7085461]
[1765829607238,0.69047482,85803.0,85802.0,0.3550361]
[1765829607535,0.69047482,85803.0,85802.0,0.7085461]
[1765829608031,0.69047482,85803.0,85802.0,0.3550361]
[1765829608238,0.69147482,85803.0,85802.0,0.3550361]
[1765829608432,0.69247482,85803.0,85802.0,0.7085461]
[1765829609248,0.69247482,85803.0,85789.0,0.19914]
[1765829609249,0.35273,85790.0,85789.0,0.9076879]
[1765829609931,0.6903,85790.0,85789.0,0.0116579]
[1765829610130,1.0511,85790.0,85789.0,0.0116579]
[1765829610531,1.0511,85790.0,85789.0,0.3550379]
[1765829611037,0.6696369,85797.0,85796.0,0.3596269]
[1765829611429,0.65798,85797.0,85796.0,0.3596269]
[1765829611629,0.3608,85798.0,85797.0,0.68647]
[1765829612032,0.67898,85787.0,85786.0,0.72754312]
[1765829612931,0.67898,85787.0,85786.0,0.00017482]
[1765829613336,0.0116599,85776.0,85775.0,0.0116597]
[1765829613534,0.6906399,85776.0,85775.0,0.0116597]
[1765829613840,0.6906405,85773.0,85772.0,0.0116601]
[1765829614031,0.6906405,85773.0,85772.0,0.3698901]
[1765829614233,0.67898,85773.0,85772.0,0.7273701]
[1765829614544,0.67798,85773.0,85772.0,0.7273701]
[1765829614731,0.67798,85773.0,85772.0,0.0116601]
[1765829615940,0.67798,85773.0,85772.0,0.0136601]
[1765829616139,0.67798,85773.0,85772.0,0.3718901]
[1765829616333,0.67798,85773.0,85772.0,0.71771]
[1765829616528,0.67798,85773.0,85772.0,0.004]
[1765829616736,0.67798,85773.0,85772.0,0.71971]
[1765829616942,0.52718815,85773.0,85772.0,0.71971]
[1765829617634,0.0116598,85775.0,85774.0,0.71571]
[1765829617833,0.6906398,85775.0,85774.0,0.71571]
[1765829618545,0.69064,85773.0,85772.0,0.004]
[1765829618738,0.69064,85773.0,85772.0,0.71971]
[1765829619542,0.68964,85773.0,85772.0,0.002]
[1765829619742,0.688641,85769.0,85768.0,0.3698906]
[1765829619944,0.688641,85769.0,85768.0,0.7273706]
[1765829620143,0.686641,85769.0,85768.0,0.7273706]
[1765829620448,0.67898,85765.0,85753.0,0.3608]
[1765829620646,0.67698,85765.0,85762.0,0.0116615]
[1765829620836,0.67698,85765.0,85764.0,0.40840482]
[1765829621148,0.67698,85765.0,85764.0,0.76588482]
[1765829621448,0.67198,85765.0,85764.0,0.76588482]
[1765829621634,0.67198,85765.0,85764.0,0.05017482]
[1765829622539,0.3608,85771.0,85770.0,0.9413404]
[1765829624140,0.33246482,85781.0,85780.0,0.92968]
[1765829624350,0.00017482,85781.0,85780.0,0.9413391]
[1765829624841,0.3608,85795.0,85794.0,0.7273672]
[1765829625345,0.3608,85802.0,85801.0,0.0116562]
[1765829625543,0.3889683,85802.0,85801.0,0.7273662]
[1765829626437,0.0281683,85802.0,85801.0,0.7273662]
[1765829627037,0.0331683,85802.0,85801.0,0.7273662]
[1765829627437,0.03248262,85802.0,85801.0,0.7273662]
[1765829627648,0.01,85802.0,85801.0,0.7273662]
[1765829627848,0.008,85802.0,85801.0,0.7273662]
[1765829629141,0.68498,85802.0,85801.0,0.7273662]
[1765829631048,0.51651505,85802.0,85801.0,0.7273662]
[1765829632254,0.51251505,85802.0,85801.0,0.7273662]
[1765829632552,0.51551505,85802.0,85801.0,0.7273662]
[1765829632748,0.005,85802.0,85801.0,0.7273662]
[1765829633553,0.3608,85805.0,85804.0,0.7273658]
[1765829633852,0.69309,85805.0,85804.0,0.7273658]
[1765829635054,0.00017482,85810.0,85809.0,0.7273651]
[1765829635956,0.33246482,85810.0,85809.0,0.7273651]
[1765829636346,0.00117482,85810.0,85809.0,0.7273651]
[1765829636750,0.00317482,85810.0,85809.0,0.7273651]
[1765829636956,0.00217482,85810.0,85809.0,0.7273651]
[1765829637347,0.00517482,85810.0,85809.0,0.7273651]
[1765829638547,0.00317482,85810.0,85809.0,0.7273651]
[1765829638745,0.00517482,85810.0,85809.0,1.4606851]
[1765829639549,0.68415482,85810.0,85809.0,1.4606851]
[1765829639752,0.68415482,85810.0,85809.0,1.09155]
[1765829640447,0.68415482,85810.0,85809.0,1.44903]
[1765829640653,0.69580982,85810.0,85809.0,1.44903]
[1765829641051,0.68415482,85810.0,85809.0,1.44903]
[1765829641253,0.69580982,85810.0,85809.0,1.44903]
[1765829641759,0.69380982,85810.0,85809.0,1.44903]
[1765829642059,0.69680982,85810.0,85809.0,1.44903]
[1765829642360,0.68615482,85810.0,85809.0,1.44903]
[1765829642553,0.68615482,85810.0,85809.0,0.71571]
[1765829642759,0.69780982,85810.0,85809.0,0.71571]
[1765829645164,0.68615482,85810.0,85809.0,0.71571]
[1765829645463,0.3608,85813.0,85809.0,1.44879]
[1765829645760,0.3608,85833.0,85832.0,0.897262]
[1765829646059,0.3608,85840.0,85832.0,0.897262]
[1765829646060,0.67847,85840.0,85839.0,0.68626]
[1765829646260,0.6901216,85835.0,85834.0,0.6979117]
[1765829646454,1.0509216,85835.0,85834.0,0.68626]
[1765829647355,1.0509216,85835.0,85834.0,0.70623191]
[1765829647658,1.0509216,85835.0,85828.0,0.0116525]
[1765829647659,0.6901224,85829.0,85828.0,0.0116525]
[1765829647862,0.6901224,85829.0,85828.0,0.3700025]
[1765829648250,0.6901224,85829.0,85828.0,0.39007709]
[1765829648651,0.67847,85829.0,85828.0,0.71798709]
[1765829649256,0.68147,85829.0,85828.0,0.71798709]
[1765829649456,0.6931224,85829.0,85828.0,0.71798709]
[1765829649750,0.002,85829.0,85828.0,0.71798709]
[1765829649953,0.004,85829.0,85828.0,1.07878709]
[1765829650152,0.20385026,85840.0,85839.0,0.6979111]
[1765829650356,0.0116507,85842.0,85833.0,0.19935]
[1765829650357,0.00017482,85843.0,85842.0,0.8972607]
[1765829650960,0.34079482,85843.0,85842.0,0.8972607]
[1765829651356,0.6901213,85837.0,85836.0,1.04706]
[1765829651659,0.00017482,85843.0,85806.0,0.19935]
[1765829651660,0.6901224,85829.0,85828.0,0.02007459]
[1765829651960,0.6901224,85829.0,85811.0,0.3608]
[1765829651961,0.67847,85807.0,85806.0,0.96937671]
[1765829652161,0.6901254,85807.0,85806.0,0.8972655]
[1765829652362,0.3608,85820.0,85819.0,0.68626]
[1765829652562,1.45908,85843.0,85806.0,0.21996717]
[1765829652563,1.0509223,85830.0,85829.0,0.68626]
[1765829652761,1.03927,85830.0,85829.0,0.68626]
[1765829653152,1.0509223,85830.0,85829.0,0.68626]
[1765829654256,0.6901228,85827.0,85826.0,0.0116528]
[1765829654657,0.34062,85822.0,85821.0,0.68643482]
[1765829654865,0.67847,85822.0,85821.0,0.69808832]
[1765829655068,0.67847,85822.0,85821.0,0.00017482]
[1765829655767,0.67847,85812.0,85811.0,0.0116548]
[1765829656155,0.67847,85812.0,85811.0,0.3700048]
[1765829656553,0.67847,85812.0,85811.0,0.6979148]
[1765829656753,0.00017482,85820.0,85819.0,0.68626]
[1765829657155,0.007,85822.0,85821.0,0.68626]
[1765829657866,0.68547,85822.0,85821.0,0.68626]
[1765829658171,0.68247,85822.0,85821.0,0.68626]
[1765829658872,0.34062,85827.0,85826.0,0.6979128]
[1765829659169,0.67847,85827.0,85826.0,0.6979128]
[1765829659571,0.34062,85827.0,85826.0,0.6979128]
[1765829659768,0.00017482,85830.0,85829.0,0.6979124]
[1765829660366,0.00017482,85830.0,85825.0,0.3608]
[1765829660367,0.67847,85826.0,85825.0,0.3700029]
[1765829660561,0.67847,85826.0,85825.0,0.6979129]
[1765829660761,0.67847,85826.0,85825.0,0.68626]
[1765829660971,0.0116533,85823.0,85821.0,0.00017482]
[1765829661267,0.67847,85822.0,85821.0,0.00017482]
[1765829661768,1.03927,85822.0,85821.0,0.00017482]
[1765829662771,1.04227,85822.0,85821.0,0.00017482]
[1765829662971,1.04527,85822.0,85821.0,0.00017482]
[1765829663962,0.67847,85808.0,85807.0,0.68626]
[1765829664168,1.03927,85815.0,85814.0,0.68626]
[1765829664368,0.3522739,85819.0,85818.0,0.68626]
[1765829664673,0.3522739,85819.0,85818.0,0.6979139]
[1765829665073,0.6901247,85813.0,85812.0,0.35835]
[1765829665265,0.67847,85811.0,85810.0,0.35852482]
[1765829665468,0.3522742,85816.0,85815.0,0.68626]
[1765829665770,0.002,85819.0,85810.0,0.08385612]
[1765829665771,0.67847,85811.0,85810.0,0.69808982]
[1765829665978,0.6921238,85819.0,85818.0,0.68626]
[1765829666161,0.6941238,85819.0,85818.0,0.68626]
[1765829666671,0.6921238,85819.0,85818.0,0.68626]
[1765829667468,0.6901238,85819.0,85818.0,0.68626]
[1765829668070,0.6921238,85819.0,85818.0,0.68626]
[1765829668769,0.6901245,85814.0,85813.0,0.3700045]
[1765829668970,0.6901245,85814.0,85813.0,0.35835]
[1765829669380,0.6901245,85814.0,85813.0,0.68626]
[1765829670579,0.6805,85812.0,85811.0,0.0836813]
[1765829670782,0.6921549,85811.0,85810.0,0.00017482]
[1765829671272,0.6921549,85811.0,85810.0,0.88396482]
[1765829671980,0.6951549,85811.0,85810.0,0.88396482]
[1765829672380,0.6951549,85811.0,85810.0,0.96764612]
[1765829672578,0.003,85811.0,85810.0,0.96764612]
[1765829672878,0.36368,85811.0,85810.0,0.96764612]
[1765829673087,0.005,85811.0,85810.0,0.88396482]
[1765829673382,0.004,85811.0,85810.0,0.96764612]
[1765829673578,0.004,85811.0,85810.0,1.24476482]
[1765829674568,0.36168,85811.0,85810.0,1.24476482]
[1765829674777,0.003,85811.0,85810.0,1.24476482]
[1765829675283,0.7183739,85819.0,85818.0,0.65014]
[1765829676384,0.7183739,85819.0,85818.0,0.6617939]
[1765829676683,0.3703339,85819.0,85818.0,0.6617939]
[1765829676886,0.70672,85825.0,85824.0,0.8611]
[1765829678282,0.00017482,85830.0,85829.0,0.6617924]
[1765829678482,0.00017482,85830.0,85829.0,1.0225924]
[1765829679181,0.718371,85840.0,85839.0,0.6617911]
[1765829679378,0.718371,85840.0,85839.0,0.65014]
[1765829679579,0.7183717,85834.0,85833.0,0.8611]
[1765829680177,0.70672,85834.0,85833.0,0.8611]
[1765829681191,0.70772,85834.0,85833.0,0.8611]
[1765829681782,0.70672,85832.0,85831.0,0.0116521]
[1765829681988,0.70672,85832.0,85831.0,0.6617921]
[1765829683090,0.35868,85832.0,85831.0,0.6617921]
[1765829683277,0.71948,85838.0,85837.0,0.65014]
[1765829683587,0.3608,85838.0,85837.0,0.6617913]
[1765829684290,0.011651,85840.0,85839.0,0.65014]
[1765829684492,0.718371,85840.0,85839.0,0.65014]
[1765829684795,0.7183717,85834.0,85833.0,0.8611]
[1765829686092,0.7193717,85834.0,85833.0,0.8611]
[1765829686979,0.7203717,85834.0,85833.0,0.8611]
[1765829687194,0.7223717,85834.0,85833.0,0.8611]
[1765829687999,0.3743317,85834.0,85833.0,0.8611]
[1765829688295,0.0156517,85834.0,85833.0,0.8611]
[1765829688998,0.7223717,85834.0,85833.0,0.8611]
[1765829689293,0.70672,85826.0,85825.0,0.00017482]
[1765829689482,0.7183728,85826.0,85825.0,0.00017482]
[1765829690090,0.70672,85826.0,85825.0,0.65031482]
[1765829690290,0.7183724,85830.0,85829.0,0.6617924]
[1765829690490,0.7183728,85826.0,85825.0,0.00017482]
[1765829690703,0.7193728,85826.0,85825.0,0.00017482]
[1765829691206,0.7183728,85826.0,85825.0,0.00017482]
[1765829691396,0.54809307,85826.0,85825.0,0.00017482]
[1765829691700,0.54909307,85826.0,85825.0,0.00017482]
[1765829692398,0.55109307,85826.0,85825.0,0.00017482]
[1765829692594,0.55009307,85826.0,85825.0,0.00017482]
[1765829692799,0.6661942,85816.0,85815.0,0.3608]
[1765829692999,0.6661942,85816.0,85815.0,0.57176]
[1765829693301,0.6661942,85816.0,85815.0,0.89636]
[1765829693985,0.6681942,85816.0,85815.0,0.89636]
[1765829694701,0.65454,85814.0,85813.0,0.08376783]
[1765829695000,0.6661949,85811.0,85810.0,0.08376783]
[1765829695594,0.6661949,85811.0,85810.0,0.40836783]
[1765829695794,0.6661949,85811.0,85810.0,0.73390783]
[1765829695998,0.6691949,85811.0,85810.0,0.73390783]
[1765829696190,0.6691949,85811.0,85810.0,0.08376783]
[1765829696390,0.6691949,85811.0,85807.0,0.00017482]
[1765829696391,0.6661953,85808.0,85807.0,0.00017482]
[1765829697395,1.3989953,85808.0,85807.0,0.00017482]
[1765829697585,1.4019953,85808.0,85807.0,0.00017482]
[1765829698496,0.0116569,85796.0,85793.0,0.08376783]
[1765829698690,0.61296,85792.0,85791.0,0.08376783]
[1765829698893,0.6246176,85791.0,85789.0,0.08376783]
[1765829699090,0.6246179,85789.0,85788.0,0.08376783]
[1765829699289,0.61296,85787.0,85786.0,0.08376783]
[1765829699489,0.6246191,85780.0,85779.0,1.2219]
[1765829699898,0.6246191,85780.0,85779.0,1.2418677]
[1765829700103,0.3181391,85780.0,85779.0,1.2418677]
[1765829700792,0.3181388,85783.0,85782.0,0.65014]
[1765829700991,0.6246188,85783.0,85782.0,0.65014]
[1765829701205,0.3181388,85783.0,85782.0,0.65014]
[1765829701405,8.766e-05,85787.0,85786.0,0.6617983]
[1765829701591,0.00017482,85795.0,85794.0,0.6617972]
[1765829701792,0.0116536,85820.0,85819.0,0.65014]
[1765829702101,0.6246136,85820.0,85819.0,0.3246]
[1765829702299,0.6246136,85820.0,85815.0,0.21096]
[1765829702300,0.6246142,85816.0,85815.0,0.21096]
[1765829702489,0.6246142,85816.0,85815.0,0.56256]
[1765829702800,0.6246142,85816.0,85815.0,0.91018]
[1765829703506,0.6266142,85816.0,85815.0,0.91018]
[1765829703699,0.6266142,85816.0,85814.0,0.0116544]
[1765829703700,0.6246153,85808.0,85807.0,0.00017482]